bitfinex/quotes_SOLUSD_20240620
["timestamp","ask_amount","ask_price","bid_price","bid_amount"]
[1718894527625,6.532,134.68,134.58,18.5762]
[1718894527626,6.532,134.68,134.6,7.4293]
[1718894527845,6.532,134.68,134.48,32.57951184]
[1718894528124,6.532,134.68,134.58,7.4303]
[1718894528125,20.0,134.67,134.58,7.4303]
[1718894528448,20.0,134.67,134.58,7.4304]
[1718894529922,20.0,134.67,134.56,22.3]
[1718894530122,20.0,134.67,134.57,45.0]
[1718894530323,6.532,134.68,134.57,67.3]
[1718894530555,6.532,134.68,134.6,7.4291]
[1718894532129,6.532,134.68,134.59,7.4297]
[1718894532331,6.532,134.68,134.57,45.0]
[1718894532628,6.532,134.68,134.61,7.4283]
[1718894532851,6.532,134.68,134.62,45.0]
[1718894533148,6.532,134.68,134.63,7.4276]
[1718894533445,6.532,134.68,134.61,7.4285]
[1718894533623,6.532,134.68,134.62,52.428]
[1718894534026,6.532,134.68,134.62,45.0]
[1718894534227,6.532,134.68,134.61,7.4286]
[1718894534841,6.532,134.68,134.63,7.4273]
[1718894535041,6.532,134.68,134.64,7.4271]
[1718894535436,6.3873,134.72,134.62,67.3]
[1718894535854,15.7146,134.74,134.65,22.3]
[1718894536157,15.7146,134.74,134.63,20.0]
[1718894536158,15.7146,134.74,134.66,45.0]
[1718894536351,15.7146,134.74,134.66,85.8652]
[1718894536538,15.7146,134.74,134.7,7.4238]
[1718894537380,15.7146,134.74,134.66,85.8652]
[1718894537381,15.7146,134.74,134.68,7.4245]
[1718894537932,15.7146,134.74,134.69,7.4241]
[1718894538555,15.7146,134.74,134.68,7.4248]
[1718894538747,15.7146,134.74,134.67,7.4254]
[1718894538954,15.7146,134.74,134.66,52.4259]
[1718894539259,15.7146,134.74,134.67,7.4255]
[1718894539751,15.7146,134.74,134.68,7.4248]
[1718894539964,15.7146,134.74,134.69,7.4242]
[1718894540254,15.7146,134.74,134.68,7.4247]
[1718894540463,15.7146,134.74,134.66,45.0]
[1718894540631,15.7146,134.74,134.64,40.8677]
[1718894540632,15.7146,134.74,134.67,7.4252]
[1718894540968,15.7146,134.74,134.65,45.0]
[1718894541128,15.7146,134.74,134.67,7.425]
[1718894541954,15.7146,134.74,134.66,7.4259]
[1718894542454,15.7146,134.74,134.59,37.1482]
[1718894542839,15.7146,134.74,134.63,7.4275]
[1718894543145,15.7146,134.74,134.61,18.5711]
[1718894543146,65.0,134.73,134.61,18.5711]
[1718894543656,20.0,134.73,134.64,7.4267]
[1718894543827,20.0,134.73,134.63,7.4275]
[1718894544331,20.0,134.73,134.64,7.4272]
[1718894544553,6.5396,134.72,134.63,7.4275]
[1718894545258,6.5396,134.72,134.61,40.8711]
[1718894545434,6.5396,134.72,134.67,7.4255]
[1718894545633,6.5396,134.72,134.62,45.0]
[1718894545958,6.5396,134.72,134.64,7.4267]
[1718894546139,6.5396,134.72,134.59,5.85458459]
[1718894546344,20.0,134.71,134.57,6.4755]
[1718894546547,20.0,134.71,134.58,21.71886834]
[1718894546740,20.0,134.71,134.63,7.4276]
[1718894547059,20.0,134.71,134.62,7.428]
[1718894548060,20.0,134.71,134.61,18.5718]
[1718894548236,6.5396,134.72,134.62,45.0]
[1718894548431,6.5396,134.72,134.64,7.427]
[1718894549244,6.5396,134.72,134.65,7.4265]
[1718894549452,6.5396,134.72,134.64,7.4271]
[1718894549660,6.5396,134.72,134.63,7.4275]
[1718894549956,15.0116,134.71,134.6,7.429]
[1718894550152,60.0116,134.71,134.6,7.429]
[1718894550349,20.0,134.7,134.6,7.429]
[1718894550852,20.0,134.7,134.58,1.71886834]
[1718894550853,6.2235,134.69,134.58,1.71886834]
[1718894551051,45.0,134.68,134.58,7.4304]
[1718894552863,15.6259,134.67,134.59,7.4299]
[1718894554759,15.6259,134.67,134.54,18.5818]
[1718894554760,51.0699,134.66,134.54,18.5818]
[1718894555072,20.0,134.65,134.55,7.4318]
[1718894555253,61.3406,134.64,134.54,7.4325]
[1718894555569,26.0699,134.63,134.55,7.4321]
[1718894555868,26.0699,134.63,134.54,7.4324]
[1718894557273,26.0699,134.63,134.56,7.4313]
[1718894557572,26.0699,134.63,134.55,7.4318]
[1718894557940,26.0699,134.63,134.56,7.4313]
[1718894558364,26.0699,134.63,134.57,7.431]
[1718894558776,6.0699,134.63,134.59,7.4298]
[1718894559245,6.0699,134.63,134.57,7.4307]
[1718894559447,6.0699,134.63,134.58,7.4304]
[1718894560545,6.0699,134.63,134.59,45.0]
[1718894561742,22.8892,134.67,134.59,45.0]
[1718894561947,22.8892,134.67,134.61,7.4283]
[1718894562580,22.8892,134.67,134.58,85.8762]
[1718894562746,22.8892,134.67,134.61,7.4285]
[1718894562947,22.8892,134.67,134.61,7.4286]
[1718894563178,22.8892,134.67,134.6,7.4292]
[1718894563378,22.8892,134.67,134.61,45.0]
[1718894564771,22.8892,134.67,134.61,52.4287]
[1718894564974,22.8892,134.67,134.61,45.0]
[1718894565156,22.8892,134.67,134.59,7.4297]
[1718894565361,22.8892,134.67,134.56,40.8787]
[1718894565565,22.8892,134.67,134.58,40.8758]
[1718894565764,22.8892,134.67,134.61,7.4286]
[1718894566274,22.8892,134.67,134.62,7.4281]
[1718894566774,22.8892,134.67,134.61,7.4286]
[1718894567464,22.8892,134.67,134.62,7.4282]
[1718894567779,22.8892,134.67,134.6,7.4291]
[1718894570270,22.8892,134.67,134.61,7.4287]
[1718894570776,22.8892,134.67,134.6,7.4293]
[1718894571157,22.8892,134.67,134.58,18.5758]
[1718894571158,22.8892,134.67,134.61,7.4284]
[1718894571880,22.8892,134.67,134.62,7.4282]
[1718894572563,22.8892,134.67,134.63,7.4276]
[1718894573078,22.8892,134.67,134.61,7.4285]
[1718894573471,22.8892,134.67,134.61,7.4287]
[1718894573977,22.8892,134.67,134.61,7.4285]
[1718894574678,22.8892,134.67,134.61,7.4287]
[1718894575464,22.8892,134.67,134.63,7.4275]
[1718894575688,22.8892,134.67,134.62,7.428]
[1718894576880,22.8892,134.67,134.6,18.573]
[1718894577076,22.8892,134.67,134.62,7.428]
[1718894579785,22.8892,134.67,134.61,52.4286]
[1718894579967,22.8892,134.67,134.61,7.4286]
[1718894580167,22.8892,134.67,134.63,7.4276]
[1718894580373,22.8892,134.67,134.62,7.428]
[1718894580572,22.8892,134.67,134.54,28.207102]
[1718894580757,22.8892,134.67,134.55,20.0]
[1718894580963,22.8892,134.67,134.56,7.4314]
[1718894581463,65.0,134.66,134.57,7.431]
[1718894581675,65.0,134.66,134.56,7.4312]
[1718894581956,20.0,134.66,134.57,7.4307]
[1718894582571,20.0,134.66,134.53,43.3663]
[1718894582795,20.0,134.66,134.52,18.5842]
[1718894582796,66.3262,134.65,134.52,7.4336]
[1718894582996,15.2903,134.63,134.51,7.4342]
[1718894583172,6.2776,134.61,134.5,22.8613]
[1718894583372,6.2776,134.61,134.53,7.4332]
[1718894584597,6.2776,134.61,134.49,38.5876]
[1718894584760,6.2776,134.61,134.46,58.8414]
[1718894584761,16.558,134.6,134.48,29.7359]
[1718894584967,20.0,134.59,134.5,7.4344]
[1718894585272,20.0,134.59,134.5,7.4347]
[1718894585667,15.4056,134.57,134.48,7.4359]
[1718894586286,15.4056,134.57,134.47,7.4363]
[1718894587179,15.4056,134.57,134.49,7.4354]
[1718894587687,15.4056,134.57,134.51,7.4343]
[1718894587896,15.4056,134.57,134.5,7.4348]
[1718894588098,15.4056,134.57,134.47,22.3]
[1718894588392,15.4056,134.57,134.48,7.4357]
[1718894588774,15.4056,134.57,134.49,7.4354]
[1718894589169,15.4056,134.57,134.53,7.4327]
[1718894589369,6.2497,134.58,134.51,40.8859]
[1718894589586,15.4651,134.61,134.56,7.4314]
[1718894589972,15.4651,134.61,134.53,18.582]
[1718894590278,15.4651,134.61,134.49,18.5875]
[1718894590477,15.4651,134.61,134.53,7.4332]
[1718894590698,15.4651,134.61,134.54,7.4326]
[1718894590895,15.4651,134.61,134.5,63.5861]
[1718894590896,15.4651,134.61,134.55,7.4321]
[1718894591394,15.4651,134.61,134.55,7.4318]
[1718894592288,15.4651,134.61,134.56,45.0]
[1718894592593,15.4651,134.61,134.56,52.4313]
[1718894592891,15.4651,134.61,134.56,7.4313]
[1718894593293,15.4651,134.61,134.57,7.431]
[1718894594382,15.4651,134.61,134.58,7.4304]
[1718894594577,15.4651,134.61,134.57,7.4308]
[1718894595300,15.4651,134.61,134.58,7.4304]
[1718894595773,15.4651,134.61,134.54,40.8815]
[1718894595774,15.4651,134.61,134.57,7.431]
[1718894596302,15.4651,134.61,134.58,7.4303]
[1718894596597,21.5128,134.65,134.56,22.3]
[1718894596795,21.5128,134.65,134.58,18.576]
[1718894596984,21.5128,134.65,134.6,7.4289]
[1718894597185,21.5128,134.65,134.57,65.0]
[1718894597577,21.5128,134.65,134.58,7.4301]
[1718894597900,21.5128,134.65,134.6,7.4292]
[1718894599610,21.5128,134.65,134.59,7.4297]
[1718894600399,21.5128,134.65,134.57,124.4534]
[1718894600582,21.5128,134.65,134.62,7.4282]
[1718894600901,21.5128,134.65,134.58,40.8759]
[1718894601089,21.9796,134.68,134.61,22.3]
[1718894601296,21.9796,134.72,134.67,7.4252]
[1718894601675,21.9796,134.72,134.65,7.4263]
[1718894601876,21.9796,134.72,134.63,18.5693]
[1718894602103,21.9796,134.72,134.66,7.4257]
[1718894602281,21.9796,134.72,134.67,7.4255]
[1718894602601,21.9796,134.72,134.66,7.4258]
[1718894602903,21.9796,134.72,134.65,7.4264]
[1718894603078,21.9796,134.72,134.62,22.3]
[1718894603279,21.9796,134.72,134.68,7.4248]
[1718894603487,21.9796,134.72,134.63,67.3]
[1718894603804,21.9796,134.72,134.66,7.4258]
[1718894605219,21.9796,134.72,134.65,7.4265]
[1718894606691,21.9796,134.72,134.65,7.4264]
[1718894607092,21.9796,134.72,134.66,7.426]
[1718894607786,21.9796,134.72,134.67,7.4255]
[1718894608306,21.9796,134.72,134.65,7.4262]
[1718894609027,21.9796,134.72,134.64,7.427]
[1718894609203,21.9796,134.72,134.65,7.4265]
[1718894609404,21.9796,134.72,134.66,7.426]
[1718894609614,21.9796,134.72,134.65,7.4265]
[1718894609998,21.9796,134.72,134.64,7.4269]
[1718894610212,21.9796,134.72,134.65,7.4265]
[1718894610526,21.9796,134.72,134.64,7.4269]
[1718894611135,21.9796,134.72,134.65,7.4266]
[1718894611629,21.9796,134.72,134.66,7.4258]
[1718894611807,21.9796,134.72,134.67,7.4255]
[1718894612018,21.9796,134.72,134.63,18.5683]
[1718894612019,21.9796,134.72,134.68,7.4247]
[1718894612511,21.9796,134.72,134.67,7.4254]
[1718894612920,21.9796,134.72,134.68,7.4248]
[1718894613128,21.9796,134.72,134.67,7.4252]
[1718894614002,21.9796,134.72,134.61,44.2219]
[1718894614317,21.9796,134.72,134.65,7.4263]
[1718894614630,21.9796,134.72,134.62,45.0]
[1718894614631,21.9796,134.72,134.61,46.4111]
[1718894614926,21.9796,134.72,134.64,7.4269]
[1718894615334,21.9796,134.72,134.65,7.4266]
[1718894615521,21.9796,134.72,134.62,46.4097]
[1718894615708,21.9796,134.72,134.62,27.84]
[1718894616333,21.9796,134.72,134.64,7.4269]
[1718894616630,21.9796,134.72,134.62,27.84]
[1718894616824,21.9796,134.72,134.63,45.0]
[1718894617130,21.9796,134.72,134.64,7.4269]
[1718894617331,21.9796,134.72,134.65,7.4266]
[1718894617535,21.9796,134.72,134.63,45.0]
[1718894617713,21.9796,134.72,134.62,27.84]
[1718894618311,21.9796,134.72,134.62,7.4281]
[1718894618511,21.9796,134.72,134.61,7.4286]
[1718894618736,20.0,134.71,134.61,7.4286]
[1718894618928,20.0,134.71,134.61,18.5715]
[1718894619137,20.0,134.71,134.62,7.428]
[1718894620213,20.0,134.71,134.63,7.4276]
[1718894620415,21.9796,134.72,134.63,7.4276]
[1718894620631,45.0,134.71,134.61,7.4287]
[1718894621233,45.0,134.71,134.62,7.4282]
[1718894622236,45.0,134.71,134.58,53.0815]
[1718894622237,45.0,134.71,134.59,18.5736]
[1718894622534,45.0,134.71,134.62,7.4278]
[1718894622728,45.0,134.71,134.61,7.4286]
[1718894623033,45.0,134.71,134.62,7.4282]
[1718894624520,45.0,134.71,134.58,27.84]
[1718894624722,16.1668,134.68,134.6,7.4291]
[1718894625122,16.1668,134.68,134.58,18.5749]
[1718894625321,16.1668,134.68,134.62,7.428]
[1718894626744,16.1668,134.68,134.63,7.4274]
[1718894627341,16.1668,134.68,134.61,7.4285]
[1718894627515,16.1668,134.68,134.6,7.4292]
[1718894627941,16.1668,134.68,134.61,7.4288]
[1718894628427,16.1668,134.68,134.62,7.4279]
[1718894628621,16.1668,134.68,134.61,7.4285]
[1718894628816,16.1668,134.68,134.6,18.5733]
[1718894629028,16.1668,134.68,134.62,7.428]
[1718894629645,16.1668,134.68,134.61,7.4286]
[1718894630328,16.1668,134.68,134.62,7.4281]
[1718894630533,16.1668,134.68,134.6,7.4291]
[1718894632245,16.1668,134.68,134.59,7.4299]
[1718894632635,16.1668,134.68,134.56,18.579]
[1718894633234,16.1668,134.68,134.59,7.4296]
[1718894635143,16.1668,134.68,134.55,27.84]
[1718894635348,71.3502,134.67,134.57,7.431]
[1718894635518,71.3502,134.67,134.56,7.4313]
[1718894635721,15.3752,134.66,134.56,7.4313]
[1718894635920,15.3752,134.64,134.55,7.4319]
[1718894636426,15.3752,134.64,134.56,7.4314]
[1718894637719,15.3752,134.64,134.53,22.3]
[1718894638155,15.3752,134.64,134.56,7.4313]
[1718894638828,15.3752,134.64,134.57,7.4306]
[1718894639451,15.3752,134.64,134.58,7.4304]
[1718894639635,15.3752,134.64,134.55,7.4318]
[1718894639949,15.3752,134.64,134.56,7.4315]
[1718894640324,15.3752,134.64,134.53,22.3]
[1718894640556,15.3752,134.64,134.6,7.4291]
[1718894640932,15.3752,134.64,134.61,7.4285]
[1718894641851,15.3752,134.64,134.6,7.4291]
[1718894642559,15.3752,134.64,134.59,7.4297]
[1718894642758,15.3752,134.64,134.56,40.879]
[1718894643053,15.3752,134.64,134.59,7.4295]
[1718894643228,15.3752,134.64,134.57,67.3]
[1718894643434,15.3752,134.64,134.61,7.4285]
[1718894643939,15.3752,134.64,134.57,45.0]
[1718894644136,15.3752,134.64,134.55,40.879]
[1718894644137,15.3752,134.64,134.6,7.4291]
[1718894645526,15.3752,134.64,134.61,7.4288]
[1718894646456,15.3752,134.64,134.6,7.4292]
[1718894647348,15.3752,134.64,134.61,7.4285]
[1718894648147,15.3752,134.64,134.6,7.4291]
[1718894649261,15.3752,134.64,134.58,18.5754]
[1718894649432,15.3752,134.64,134.62,7.428]
[1718894649979,15.3752,134.64,134.61,7.4287]
[1718894650554,6.3502,134.65,134.59,18.5739]
[1718894650745,6.3502,134.65,134.6,52.4291]
[1718894650956,6.3502,134.65,134.61,7.4288]
[1718894651458,6.3502,134.65,134.61,16.7188]
[1718894652551,6.3502,134.65,134.6,52.4291]
[1718894652858,15.6402,134.65,134.59,16.7194]
[1718894654457,15.6402,134.65,134.6,7.4293]
[1718894654656,15.6402,134.65,134.57,7.4306]
[1718894654846,9.29,134.64,134.58,9.29]
[1718894655048,9.29,134.64,134.55,18.58]
[1718894655258,6.3502,134.65,134.57,7.4308]
[1718894655259,15.0988,134.62,134.57,7.4308]
[1718894655562,15.0988,134.62,134.57,16.7208]
[1718894655765,24.3888,134.62,134.56,9.29]
[1718894656755,24.3888,134.62,134.56,16.7215]
[1718894657067,15.0988,134.62,134.57,9.29]
[1718894657367,24.3888,134.62,134.56,16.7215]
[1718894659156,24.3888,134.62,134.56,7.4315]
[1718894659351,24.3888,134.62,134.56,16.7215]
[1718894659978,24.3888,134.62,134.56,9.29]
[1718894660164,9.29,134.6,134.55,7.4318]
[1718894660362,9.29,134.6,134.54,16.7224]
[1718894660745,6.5904,134.61,134.56,16.7213]
[1718894660953,6.5904,134.61,134.57,9.29]
[1718894661777,6.5904,134.61,134.56,9.29]
[1718894662282,15.8804,134.61,134.53,7.433]
[1718894662492,9.29,134.59,134.53,16.723]
[1718894662787,6.5904,134.61,134.53,9.29]
[1718894662992,9.29,134.59,134.53,9.29]
[1718894663681,9.29,134.59,134.52,16.7237]
[1718894665582,22.1672,134.58,134.49,16.81881859]
[1718894665783,22.1672,134.58,134.5,16.7246]
[1718894665968,9.29,134.56,134.5,16.7246]
[1718894666168,9.29,134.55,134.49,1.72001859]
[1718894666371,9.29,134.55,134.49,16.7254]
[1718894666776,9.29,134.55,134.49,9.29]
[1718894666968,9.29,134.56,134.5,16.7245]
[1718894667294,22.1672,134.58,134.51,16.724]
[1718894667295,9.29,134.57,134.51,16.724]
[1718894668182,9.29,134.56,134.5,7.4346]
[1718894668799,9.29,134.56,134.5,16.7246]
[1718894669480,9.29,134.57,134.51,16.7242]
[1718894669678,9.29,134.56,134.5,16.7247]
[1718894669886,9.29,134.54,134.46,7.4367]
[1718894670084,9.29,134.54,134.44,55.056388]
[1718894670085,9.29,134.54,134.48,9.29]
[1718894670391,22.1672,134.58,134.48,9.29]
[1718894670694,9.29,134.55,134.49,9.29]
[1718894671698,9.29,134.54,134.48,16.7257]
[1718894671880,9.29,134.54,134.48,9.29]
[1718894672281,9.29,134.54,134.48,7.4357]
[1718894672520,9.29,134.54,134.47,7.4363]
[1718894672796,16.2981,134.53,134.48,9.29]
[1718894673381,25.5881,134.53,134.48,9.29]
[1718894673594,6.2545,134.52,134.45,7.4374]
[1718894673802,15.5445,134.52,134.45,7.4374]
[1718894674101,9.29,134.51,134.45,9.29]
[1718894674479,9.29,134.51,134.45,16.7277]
[1718894674698,9.29,134.51,134.44,7.4382]
[1718894674892,9.29,134.5,134.45,9.29]
[1718894675599,9.29,134.5,134.41,34.5882]
[1718894675802,9.29,134.5,134.44,9.29]
[1718894675988,9.29,134.5,134.41,34.5882]
[1718894676303,9.29,134.47,134.37,15.1301]
[1718894676711,6.0498,134.46,134.4,7.44]
[1718894676909,6.0498,134.46,134.41,16.7294]
[1718894677385,6.0498,134.46,134.41,9.29]
[1718894677588,25.9362,134.45,134.37,31.4282]
[1718894677791,25.9362,134.45,134.4,9.29]
[1718894678103,9.29,134.44,134.38,7.4413]
[1718894678307,9.29,134.43,134.37,7.442]
[1718894678498,9.29,134.43,134.37,9.29]
[1718894678686,22.5626,134.42,134.32,29.817119]
[1718894678886,9.29,134.4,134.34,16.7335]
[1718894679211,9.29,134.4,134.33,7.4441]
[1718894679390,9.29,134.4,134.34,7.4435]
[1718894679586,9.29,134.4,134.34,16.7335]
[1718894680285,22.5626,134.42,134.36,7.4426]
[1718894680488,31.8526,134.42,134.33,37.16]
[1718894680696,31.8526,134.42,134.35,7.4429]
[1718894680697,9.29,134.41,134.35,7.4429]
[1718894680893,9.29,134.41,134.35,16.7329]
[1718894681096,9.29,134.41,134.36,16.7323]
[1718894681302,31.8526,134.42,134.36,9.29]
[1718894681605,22.5626,134.42,134.36,7.4426]
[1718894682408,22.5626,134.42,134.33,18.6108]
[1718894682409,22.5626,134.42,134.35,7.443]
[1718894682900,22.5626,134.42,134.34,7.4435]
[1718894683100,22.5626,134.42,134.33,7.4442]
[1718894683306,15.7245,134.4,134.28,16.2447]
[1718894683504,22.1304,134.4,134.25,7.4486]
[1718894683807,27.96,134.41,134.27,7.4471]
[1718894683808,6.4059,134.37,134.27,7.4471]
[1718894683993,45.0,134.36,134.27,7.4476]
[1718894684694,45.0,134.36,134.24,66.5537]
[1718894684695,45.0,134.36,134.26,7.4479]
[1718894684896,45.0,134.36,134.25,7.4485]
[1718894685099,20.0,134.35,134.25,7.4485]
[1718894685302,20.0,134.35,134.26,7.4481]
[1718894687411,45.0,134.34,134.26,7.4481]
[1718894687915,16.1774,134.33,134.26,7.4481]
[1718894688111,16.1774,134.33,134.25,7.4485]
[1718894688506,16.1774,134.33,134.23,18.6246]
[1718894688815,16.1774,134.33,134.27,7.4476]
[1718894688996,16.1774,134.33,134.24,45.0]
[1718894688997,16.1774,134.33,134.26,7.4479]
[1718894689694,16.1774,134.33,134.27,7.4474]
[1718894689898,16.1774,134.33,134.25,7.4485]
[1718894690899,16.1774,134.33,134.26,7.4481]
[1718894691106,16.1774,134.33,134.27,7.4476]
[1718894691504,16.1774,134.33,134.26,7.4479]
[1718894691710,16.1774,134.33,134.23,18.6246]
[1718894692020,16.1774,134.33,134.25,7.4485]
[1718894692319,16.1774,134.33,134.26,7.4481]
[1718894693296,16.1774,134.33,134.26,7.4477]
[1718894693610,16.1774,134.33,134.27,7.4474]
[1718894694102,16.1774,134.33,134.23,18.6246]
[1718894694307,16.1774,134.33,134.24,45.0]
[1718894694718,16.6177,134.36,134.3,7.4455]
[1718894694933,3.5595212,134.4,134.33,18.6097]
[1718894694934,16.6177,134.39,134.33,18.6097]
[1718894695099,16.6177,134.39,134.3,27.96]
[1718894695305,16.6177,134.39,134.33,7.4442]
[1718894696408,16.6177,134.39,134.31,45.0]
[1718894696613,16.6177,134.39,134.31,7.4451]
[1718894697108,16.6177,134.39,134.32,7.4447]
[1718894699625,16.6177,134.39,134.31,7.4451]
[1718894700223,16.6177,134.39,134.32,7.4446]
[1718894700534,16.6177,134.39,134.33,7.4441]
[1718894700820,16.6177,134.39,134.32,7.4446]
[1718894702104,6.1269,134.44,134.37,7.4418]
[1718894702511,6.1269,134.44,134.37,7.442]
[1718894702908,6.1269,134.44,134.36,18.6064]
[1718894703110,6.1269,134.44,134.4,7.4402]
[1718894703436,6.1269,134.44,134.32,6.3618]
[1718894703729,6.1269,134.44,134.36,7.4423]
[1718894704022,6.1269,134.44,134.32,27.96]
[1718894704327,45.0,134.43,134.32,18.611]
[1718894704634,15.6185,134.42,134.32,7.4445]
[1718894704808,6.2896,134.4,134.31,7.4452]
[1718894705226,6.2896,134.4,134.3,18.6148]
[1718894705419,6.2896,134.4,134.32,7.4447]
[1718894706004,15.0109,134.39,134.27,29.830021]
[1718894706214,15.0109,134.39,134.27,7.4474]
[1718894706215,51.4234,134.38,134.27,7.4474]
[1718894706407,20.0,134.37,134.28,7.447]
[1718894706607,20.0,134.37,134.29,7.4462]
[1718894707130,20.0,134.37,134.3,7.4459]
[1718894707333,20.0,134.37,134.26,27.96]
[1718894707699,20.0,134.37,134.27,7.4471]
[1718894707897,45.0,134.36,134.25,18.6218]
[1718894708127,15.6101,134.35,134.26,7.4479]
[1718894708423,15.6101,134.35,134.21,20.53072129]
[1718894708424,6.3255,134.33,134.21,20.53072129]
[1718894708611,6.3255,134.33,134.21,48.49072129]
[1718894708814,6.3255,134.33,134.24,27.96]
[1718894709033,6.3255,134.33,134.29,7.4462]
[1718894709329,6.3255,134.33,134.28,7.4469]
[1718894709504,6.3255,134.33,134.26,18.6194]
[1718894709700,692.5465592,134.49,134.28,22.34]
[1718894709701,6.4552,134.37,134.28,22.34]
[1718894709937,6.4552,134.37,134.31,18.6134]
[1718894710104,6.4552,134.37,134.34,7.4435]
[1718894710431,6.4552,134.37,134.32,7.4443]
[1718894710632,15.2838,134.39,134.34,7.4437]
[1718894710818,15.2838,134.39,134.3,18.6137]
[1718894710819,6.4552,134.4,134.38,7.4414]
[1718894711016,15.2838,134.42,134.39,7.441]
[1718894711627,15.2838,134.42,134.38,7.4415]
[1718894712030,15.2838,134.42,134.33,70.38682129]
[1718894712238,15.2838,134.42,134.34,7.4434]
[1718894712413,15.2838,134.42,134.33,48.49072129]
[1718894712414,15.2838,134.42,134.33,20.53072129]
[1718894712612,15.2838,134.42,134.33,27.97502129]
[1718894712938,15.2838,134.42,134.35,7.4429]
[1718894713114,15.2838,134.42,134.34,7.4435]
[1718894713309,15.2838,134.42,134.28,46.5768]
[1718894713633,20.0,134.41,134.29,22.34]
[1718894713805,15.2838,134.42,134.35,7.4428]
[1718894714329,15.2838,134.42,134.33,22.34]
[1718894714541,15.2838,134.42,134.38,7.4413]
[1718894715108,15.9913,134.46,134.35,22.34]
[1718894715415,15.9913,134.46,134.4,7.4401]
[1718894715620,15.9913,134.46,134.39,7.4406]
[1718894715842,15.9913,134.46,134.4,7.4403]
[1718894716317,15.9913,134.46,134.41,7.4398]
[1718894716702,15.9913,134.46,134.37,40.944]
[1718894716703,15.9913,134.46,134.4,7.4404]
[1718894717581,15.9913,134.46,134.36,45.0]
[1718894717710,15.9913,134.46,134.25,266.067]
[1718894717711,15.9913,134.46,134.35,7.4427]
[1718894717915,20.0,134.45,134.38,7.4412]
[1718894718114,20.0,134.45,134.37,7.4419]
[1718894718309,20.0,134.45,134.38,7.4414]
[1718894718505,15.9913,134.46,134.35,22.34]
[1718894718723,15.9913,134.46,134.34,27.96]
[1718894718932,15.9913,134.46,134.35,67.34]
[1718894719311,15.9913,134.46,134.39,7.4408]
[1718894719515,15.9913,134.46,134.35,67.34]
[1718894719730,15.9913,134.46,134.41,7.4398]
[1718894719937,15.9913,134.46,134.35,45.0]
[1718894720112,15.9913,134.46,134.36,7.4426]
[1718894720313,15.9913,134.46,134.37,7.4419]
[1718894720511,15.9913,134.46,134.37,7.442]
[1718894720711,15.9913,134.46,134.36,7.4424]
[1718894720927,15.9913,134.46,134.35,52.4432]
[1718894721132,45.0,134.45,134.36,7.4425]
[1718894721642,45.0,134.45,134.37,7.442]
[1718894722436,15.9913,134.46,134.38,7.4414]
[1718894722734,15.9913,134.46,134.36,7.4423]
[1718894722919,65.0,134.45,134.36,7.4425]
[1718894723125,20.0,134.45,134.37,7.442]
[1718894723330,20.0,134.45,134.36,7.4424]